bitfinex/quotes_SOLUSD_20250915
["timestamp","ask_amount","ask_price","bid_price","bid_amount"]
[1757932724834,3.30362705,236.29,236.28,4.2322668]
[1757932725025,3.30362705,236.29,236.27,4.23244593]
[1757932725223,0.69,236.28,236.27,4.23244593]
[1757932725426,3.27362705,236.28,236.27,4.23244593]
[1757932727217,13.59559401,236.34,236.27,14.81356075]
[1757932727421,3.27362705,236.28,236.27,14.81356075]
[1757932729341,11.47362705,236.28,236.27,14.81356075]
[1757932729520,10.78362705,236.28,236.27,14.81356075]
[1757932731035,11.47362705,236.28,236.27,14.81356075]
[1757932731417,10.78362705,236.28,236.27,14.81356075]
[1757932734532,8.2,236.28,236.27,14.81356075]
[1757932737336,0.03,236.29,236.27,15.48356075]
[1757932737529,0.03,236.29,236.28,33.87]
[1757932738131,0.03,236.29,236.28,38.1022668]
[1757932738321,0.03,236.29,236.28,38.24442837]
[1757932739442,0.03,236.29,236.28,4.37442837]
[1757932739646,0.03,236.29,236.28,37.57442837]
[1757932739846,0.03,236.29,236.28,4.37442837]
[1757932740023,0.03,236.29,236.28,33.2]
[1757932740223,0.03,236.29,236.27,14.81356075]
[1757932740443,0.03,236.29,236.28,33.2]
[1757932741347,3.30362705,236.29,236.28,33.2]
[1757932741535,3.30362705,236.29,236.27,14.81356075]
[1757932741743,3.28362705,236.28,236.27,48.01356075]
[1757932741929,3.28362705,236.28,236.27,14.81356075]
[1757932742241,0.7,236.28,236.27,14.81356075]
[1757932742426,3.28362705,236.28,236.27,14.81356075]
[1757932742628,0.7,236.28,236.27,14.81356075]
[1757932742936,3.28362705,236.28,236.27,4.23244593]
[1757932743245,2.2,236.27,236.24,10.58217826]
[1757932743430,2.58362705,236.25,236.24,14.81516166]
[1757932743630,3.28362705,236.25,236.24,14.81516166]
[1757932743851,3.28362705,236.25,236.24,4.2329834]
[1757932744148,3.28362705,236.25,236.23,4.23316259]
[1757932744322,2.58362705,236.24,236.23,4.23316259]
[1757932745036,3.28362705,236.24,236.23,4.23316259]
[1757932747743,2.58362705,236.24,236.23,4.23316259]
[1757932747950,2.2,236.27,236.23,15.50606907]
[1757932748149,2.2,236.27,236.26,26.0]
[1757932748326,2.2,236.27,236.26,59.89]
[1757932748923,0.03,236.29,236.26,74.70418775]
[1757932749144,0.03,236.29,236.27,0.69]
[1757932749343,0.03,236.29,236.28,33.2]
[1757932749654,0.03,236.29,236.28,33.89]
[1757932750026,0.03,236.29,236.28,34.03216157]
[1757932750640,0.03,236.29,236.28,33.89]
[1757932750842,0.03,236.29,236.28,38.1222668]
[1757932752030,0.03,236.29,236.28,38.26442837]
[1757932753027,0.03,236.29,236.28,38.24442837]
[1757932753637,0.03,236.29,236.28,5.06442837]
[1757932753836,0.03,236.29,236.28,38.24442837]
[1757932755334,1e-08,236.34,236.31,26.0]
[1757932755649,1e-08,236.34,236.32,33.18]
[1757932756037,1e-08,236.34,236.31,26.0]
[1757932756354,0.70000001,236.34,236.33,4.23137138]
[1757932756526,1.65253817,236.34,236.33,4.23137138]
[1757932757858,2.35253817,236.34,236.33,4.23137138]
[1757932758237,2.35253817,236.34,236.28,35.97426781]
[1757932758447,1.65253816,236.29,236.28,14.8129338]
[1757932758641,1.65253816,236.29,236.28,47.9929338]
[1757932759148,1.65253816,236.29,236.28,14.8129338]
[1757932759355,1.65253816,236.29,236.28,47.9929338]
[1757932759550,1.65253816,236.29,236.28,14.8129338]
[1757932759737,1.65253816,236.29,236.28,47.9929338]
[1757932759938,1.65253816,236.3,236.28,47.9929338]
[1757932760337,0.9,236.32,236.28,47.9929338]
[1757932760542,1.65253816,236.3,236.28,47.9929338]
[1757932762039,0.9,236.32,236.28,47.9929338]
[1757932762240,1.65253816,236.3,236.28,47.9929338]
[1757932762861,0.9,236.32,236.28,47.9929338]
[1757932763062,1.65253816,236.3,236.28,47.9929338]
[1757932763260,0.2,236.32,236.28,47.9929338]
[1757932763558,1.65253816,236.31,236.28,14.8129338]
[1757932763758,1.65253816,236.31,236.29,33.18]
[1757932763958,1.65253816,236.31,236.3,33.18]
[1757932764159,1.65253816,236.31,236.28,14.8129338]
[1757932764358,1.85253816,236.32,236.29,33.18]
[1757932765052,2.55253816,236.32,236.29,33.18]
[1757932765254,1.85253816,236.32,236.29,33.18]
[1757932765563,1.85253816,236.32,236.3,4.23190859]
[1757932765761,1.65253816,236.31,236.3,4.23190859]
[1757932765962,0.7,236.31,236.3,37.41190859]
[1757932767158,2.35253816,236.31,236.3,37.41190859]
[1757932767862,0.7,236.31,236.3,37.41190859]
[1757932768072,2.35253816,236.31,236.3,4.23190859]
[1757932769663,1.65253816,236.31,236.3,4.23190859]
[1757932773000,2.36253816,236.31,236.3,4.23190859]
[1757932774675,1.65253816,236.31,236.3,4.23190859]
[1757932774873,2.36253816,236.31,236.3,4.23190859]
[1757932776572,0.71,236.31,236.3,4.23190859]
[1757932776771,2.36253816,236.31,236.3,4.23190859]
[1757932776974,1.65253816,236.31,236.3,4.23190859]
[1757932777182,2.36253816,236.31,236.3,4.23190859]
[1757932777504,0.2,236.32,236.3,4.93190859]
[1757932777788,0.03000001,236.34,236.31,59.86]
[1757932778380,0.03000001,236.34,236.32,0.7]
[1757932778583,0.03000001,236.34,236.33,33.16]
[1757932780073,1.68253817,236.34,236.33,37.39137138]
[1757932780473,1.68253817,236.34,236.33,4.23137138]
[1757932780993,1.68253817,236.34,236.33,37.39137138]
[1757932781496,0.03000001,236.34,236.33,37.39137138]
[1757932781688,1.68253817,236.34,236.33,37.39137138]
[1757932782185,0.03000001,236.34,236.33,37.39137138]
[1757932782403,1.68253817,236.34,236.33,37.39137138]
[1757932785381,0.03000001,236.34,236.33,37.39137138]
[1757932786976,1.68253817,236.34,236.33,37.39137138]
[1757932793296,0.03000001,236.34,236.33,37.39137138]
[1757932794778,2.39253817,236.34,236.33,4.23137138]
[1757932795287,2.39253817,236.34,236.31,4.23155382]
[1757932795604,0.71,236.33,236.31,4.23155382]
[1757932795985,0.71,236.32,236.31,4.23155382]
[1757932796616,2.36253816,236.32,236.31,4.23155382]
[1757932800396,0.71,236.32,236.31,4.23155382]
[1757932800614,2.36253816,236.32,236.31,4.23155382]
[1757932801118,2.36253816,236.32,236.3,0.06]
[1757932801298,15.24813217,236.31,236.3,0.06]
[1757932801706,15.92813217,236.31,236.3,0.06]
[1757932802591,138.42813281,236.33,236.3,14.87168006]
[1757932802592,134.87674861,236.33,236.3,14.87168006]
[1757932802788,136.52928677,236.33,236.3,14.87168006]
[1757932803020,1.65253816,236.31,236.3,4.29190859]
[1757932803215,0.68,236.31,236.3,0.06]
[1757932803398,2.33253816,236.31,236.3,0.06]
[1757932804321,0.68,236.31,236.3,0.06]
[1757932804521,2.33253816,236.31,236.3,0.06]
[1757932805398,2.33253816,236.31,236.3,4.29190859]
[1757932805399,1.65253816,236.31,236.3,4.29190859]
[1757932805815,2.33253816,236.31,236.3,0.06]
[1757932806406,2.33253816,236.31,236.3,4.29190859]
[1757932807701,2.33253816,236.31,236.3,0.06]
[1757932808103,17.58067033,236.31,236.3,0.06]
[1757932808520,50.70067033,236.31,236.3,0.06]
[1757932808830,57.78237454,236.31,236.28,0.06]
[1757932809032,16.90067033,236.29,236.28,0.06]
[1757932809628,3.98507632,236.29,236.28,0.06]
[1757932810327,3.98507632,236.29,236.27,0.06]
[1757932810501,16.90067033,236.28,236.27,0.06]
[1757932811307,17.58067033,236.28,236.27,0.06]
[1757932811631,14.27559401,236.28,236.27,0.06]
[1757932811934,56.7987128,236.28,236.22,4.29331877]
[1757932812132,0.68,236.27,236.25,0.06]
[1757932812307,2.58539976,236.26,236.25,0.06]
[1757932812713,3.26539976,236.26,236.25,0.06]
[1757932813319,132.5,236.27,236.25,0.06]
[1757932813517,2.58539976,236.28,236.25,15.53473438]
[1757932813827,2.58539976,236.28,236.26,0.66]
[1757932814022,2.58539976,236.28,236.27,0.66]
[1757932814715,0.03,236.32,236.27,26.66]
[1757932814716,2.58539976,236.29,236.27,26.66]
[1757932814918,2.58539976,236.29,236.28,4.8922668]
[1757932815628,2.58539976,236.3,236.28,15.4729338]
[1757932815814,2.58539976,236.29,236.28,15.4729338]
[1757932816324,2.58539976,236.29,236.28,4.2322668]
[1757932816825,2.58539976,236.29,236.26,4.23262507]
[1757932817032,2.58539976,236.29,236.26,4.89262507]
[1757932817335,2.58539976,236.27,236.26,4.89262507]
[1757932819343,2.58539976,236.27,236.26,4.23262507]
[1757932821542,2.58539976,236.29,236.26,14.81418775]
[1757932821945,2.58539976,236.3,236.26,14.81418775]
[1757932822125,0.03,236.32,236.29,26.0]
[1757932822634,0.03,236.32,236.3,0.66]
[1757932823225,0.03,236.32,236.31,33.26216157]
[1757932823628,0.03,236.32,236.31,37.49389107]
[1757932823824,0.03,236.32,236.31,38.15389107]
[1757932829954,0.03,236.32,236.31,37.49389107]
[1757932830135,0.03,236.32,236.31,63.3317295]
[1757932831040,0.03,236.32,236.31,37.3317295]
[1757932831223,0.03,236.32,236.31,37.9917295]
[1757932831741,0.3,236.37,236.31,48.57105326]
[1757932832042,0.3,236.37,236.31,47.91105326]
[1757932832239,0.03,236.37,236.32,0.72]
[1757932832546,0.03,236.37,236.34,26.0]
[1757932832925,0.03,236.37,236.35,33.1]
[1757932833243,0.03,236.37,236.36,4.23083432]
[1757932833448,0.03,236.37,236.36,4.95083432]
[1757932834232,0.03,236.37,236.36,4.23083432]
[1757932834448,0.03,236.37,236.36,5.09299589]
[1757932836546,10.0,236.5,236.39,26.0]
[1757932836761,0.68,236.49,236.43,26.0]
[1757932837044,0.68,236.48,236.44,33.08]
[1757932837350,0.68,236.47,236.44,33.08]
[1757932837537,12.58539976,236.5,236.45,4.22922393]
[1757932837739,0.68,236.46,236.43,4.22948356]
[1757932838040,16.81375975,236.5,236.43,33.08]
[1757932838041,0.68,236.45,236.43,33.08]
[1757932838240,0.68,236.44,236.43,33.08]
[1757932838745,2.58539976,236.48,236.43,33.08]
[1757932838746,0.68,236.46,236.43,33.08]
[1757932838924,0.68,236.45,236.43,33.08]
[1757932839123,0.68,236.45,236.41,14.80466935]
[1757932839325,0.68,236.44,236.42,33.08]
[1757932839627,0.68,236.44,236.43,4.22958169]
[1757932840628,2.58539976,236.47,236.43,4.22958169]
[1757932840923,0.68,236.46,236.43,4.22958169]
[1757932841423,0.68,236.45,236.43,4.22958169]
[1757932842849,0.68,236.47,236.43,4.22958169]
[1757932843036,0.68,236.46,236.43,4.22958169]
[1757932844250,3.26539976,236.48,236.43,4.22958169]
[1757932844452,0.68,236.47,236.43,4.22958169]
[1757932844749,0.68,236.46,236.43,4.22958169]
[1757932844956,2.58539976,236.48,236.43,4.22958169]
[1757932845123,0.68,236.46,236.43,4.22958169]
[1757932846732,0.68,236.46,236.43,37.28958169]
[1757932847753,2.58539976,236.47,236.43,37.28958169]
[1757932848131,3.26539976,236.47,236.43,37.28958169]
[1757932849257,0.68,236.47,236.43,37.28958169]
[1757932850060,2.58539976,236.48,236.43,37.28958169]
[1757932850232,0.68,236.46,236.43,37.28958169]
[1757932850433,0.71,236.46,236.42,4.22976059]
[1757932850634,0.71,236.46,236.43,33.06]
[1757932850829,2.58539976,236.44,236.35,0.68]
[1757932851033,0.03,236.46,236.36,33.06]
[1757932851034,2.58539976,236.41,236.36,33.06]
[1757932851334,3.26539976,236.41,236.36,0.68]
[1757932851538,0.68,236.4,236.36,33.74]
[1757932851746,2.58539976,236.41,236.36,33.74]
[1757932851938,3.26539976,236.41,236.36,33.74]
[1757932852649,2.58539976,236.41,236.36,37.97066838]
[1757932852861,0.68,236.4,236.36,37.97066838]
[1757932853041,2.58539976,236.41,236.36,37.97066838]
[1757932853350,3.26539976,236.41,236.36,37.97066838]
[1757932853558,2.58539976,236.4,236.36,37.97066838]
[1757932854362,3.26539976,236.4,236.36,4.91066838]
[1757932854545,17.82499681,236.44,236.37,4.91050169]
[1757932854854,13.59559401,236.44,236.38,33.06]
[1757932855057,0.03,236.46,236.42,0.14216157]
[1757932855252,0.03,236.46,236.43,33.74]
[1757932855554,0.03,236.46,236.44,33.74]
[1757932855750,0.03,236.46,236.4,26.0]
[1757932855751,0.03,236.46,236.45,0.68]
[1757932856948,0.03,236.46,236.45,4.90922393]
[1757932859444,0.03,236.46,236.45,0.68]
[1757932859754,0.03,236.46,236.45,4.90922393]
[1757932860070,0.03,236.46,236.45,4.22922393]
[1757932860552,0.03,236.46,236.45,4.90922393]
[1757932860742,0.03,236.46,236.45,0.68]
[1757932861141,0.03,236.46,236.45,4.90922393]
[1757932862742,0.03,236.46,236.45,4.22922393]
[1757932863162,0.03,236.46,236.45,4.94922393]
[1757932863539,0.03,236.46,236.45,4.22922393]
[1757932863739,0.03,236.46,236.45,4.94922393]
[1757932865459,0.03,236.46,236.45,30.94922393]
[1757932866360,0.03,236.46,236.45,31.0913855]
[1757932866752,0.03,236.46,236.45,44.68697951]
[1757932867060,225.71267241,236.62,236.5,0.14216157]
[1757932867263,133.21,236.63,236.54,26.0]
[1757932867448,133.21,236.63,236.55,37.98743606]
[1757932867764,133.21,236.63,236.56,33.76]
[1757932868254,0.71,236.65,236.57,0.72]
[1757932868764,0.71,236.68,236.59,26.0]
[1757932869062,0.71,236.67,236.6,33.04]
[1757932869257,0.71,236.66,236.6,33.04]
[1757932869564,0.71,236.66,236.6,4.22654268]
[1757932869767,2.58539976,236.61,236.51,0.72]
[1757932869961,0.71,236.65,236.49,12.70513499]
[1757932869962,2.58539976,236.55,236.49,12.70513499]
[1757932870146,0.71,236.54,236.49,12.70513499]
[1757932870344,2.58539976,236.5,236.44,0.72]
[1757932870555,3.29539976,236.5,236.44,0.72]
[1757932871362,3.29539976,236.5,236.46,26.0]
[1757932871560,3.29539976,236.5,236.42,0.72]
[1757932871561,0.71,236.49,236.42,0.72]
[1757932871770,2.58539976,236.48,236.43,0.14216157]
[1757932871960,2.58539976,236.49,236.45,26.0]
[1757932872160,2.58539976,236.49,236.45,26.72]
[1757932872355,2.58539976,236.48,236.45,26.72]
[1757932872659,2.58539976,236.46,236.41,33.08]
[1757932872840,2.58539976,236.44,236.41,0.72]
[1757932873045,0.71,236.54,236.42,33.82]
[1757932873263,2.58539976,236.5,236.45,26.0]
[1757932873762,5.87885609,236.5,236.42,33.14]
[1757932873939,4.93837623,236.5,236.43,0.72]
[1757932874140,6.58886757,236.5,236.44,26.0]
[1757932874345,1.65047986,236.45,236.39,0.72]
[1757932874647,2.36047986,236.48,236.4,0.72]
[1757932874842,1.65047986,236.45,236.4,0.72]
[1757932875047,1.65047986,236.45,236.41,26.72]
[1757932875256,1.65047986,236.45,236.38,0.72]
[1757932875561,1.65047986,236.41,236.37,0.06]
[1757932875769,1.65047986,236.4,236.37,4.2906541]
[1757932875949,2.36047986,236.41,236.37,4.2906541]
[1757932876149,2.36047986,236.41,236.38,26.0]
[1757932876364,1.65047986,236.42,236.38,0.72]
[1757932876668,1.65047986,236.39,236.37,0.06]
[1757932876859,2.36047986,236.39,236.37,0.06]
[1757932877371,1.65047986,236.39,236.37,0.06]
[1757932877763,1.65047986,236.4,236.37,0.06]
[1757932878072,2.36047986,236.4,236.37,0.06]
[1757932878260,0.71,236.39,236.37,0.06]
[1757932878569,1.65047986,236.39,236.37,0.06]
[1757932878966,2.36047986,236.4,236.37,0.06]
[1757932879558,0.71,236.39,236.37,0.06]
[1757932881555,16.27525401,236.55,236.37,30.29050741]
[1757932881851,1.65047986,236.48,236.4,26.0]
[1757932882046,1.65047986,236.49,236.41,0.72]
[1757932882271,2.36047986,236.49,236.41,0.72]
[1757932882465,1.65047986,236.48,236.41,0.72]
[1757932882669,0.71,236.47,236.41,0.72]
[1757932882970,2.36047986,236.47,236.42,4.22976059]
[1757932883169,1.65047986,236.45,236.41,26.0]
[1757932883387,1.65047986,236.42,236.37,33.24]
[1757932883571,1.65047986,236.4,236.37,0.06]
[1757932883955,1.65047986,236.39,236.37,26.06]
[1757932884165,2.36047986,236.39,236.37,26.06]
[1757932884762,1.65047986,236.39,236.37,26.06]
[1757932884973,2.36047986,236.38,236.37,0.06]
[1757932885476,20.18655022,236.38,236.34,0.06]
[1757932885778,1.65047986,236.35,236.34,0.06]
[1757932886161,2.36047986,236.35,236.34,0.06]
[1757932887080,6.59149318,236.35,236.34,0.06]
[1757932887577,2.36047986,236.35,236.34,0.06]
[1757932887970,6.59149318,236.35,236.34,0.06]
[1757932888463,20.18708719,236.35,236.34,0.06]
[1757932889460,30.7646205,236.35,236.31,0.06]
[1757932889658,33.18,236.34,236.31,0.06]
[1757932889979,1.65047986,236.32,236.31,0.06]
[1757932891173,2.36047986,236.32,236.31,0.06]
[1757932891474,6.5920303,236.32,236.31,0.06]
[1757932891782,1.65047986,236.32,236.31,0.06]
[1757932891980,4.23137553,236.33,236.31,0.06]
[1757932892170,0.7,236.34,236.31,0.06]
[1757932892365,1.65047986,236.32,236.31,0.06]
[1757932894180,132.5,236.36,236.31,0.78]
[1757932894487,132.5,236.36,236.31,5.01171867]
[1757932894864,132.5,236.36,236.32,0.72]
[1757932895072,12.27018395,236.44,236.32,0.72]
[1757932895073,1.65047986,236.39,236.32,0.72]
[1757932895376,1.65047986,236.39,236.33,4.23137138]
[1757932895560,1.65047986,236.39,236.34,0.72]
[1757932895756,47.47559401,236.42,236.35,0.72]
[1757932895757,14.29559401,236.42,236.35,0.72]
[1757932895964,1.65047986,236.39,236.35,0.72]
[1757932896984,1.65047986,236.39,236.36,4.23083432]
[1757932897182,1.65047986,236.39,236.36,4.95083432]
[1757932897371,1.65047986,236.39,236.36,4.23083432]
[1757932897773,132.5,236.43,236.36,4.23083432]
[1757932897774,132.5,236.43,236.37,0.72]
[1757932897980,1.65047986,236.42,236.37,0.72]
[1757932898183,1.65047986,236.42,236.38,0.72]
[1757932898394,1.65047986,236.42,236.39,0.72]
[1757932898566,134.15047986,236.43,236.4,0.72]
[1757932898768,132.5,236.43,236.4,0.72]
[1757932898991,132.5,236.43,236.41,4.22993951]
[1757932899290,132.5,236.43,236.41,4.94993951]
[1757932900485,132.5,236.43,236.4,4.23011844]
[1757932900988,132.5,236.43,236.4,0.72]
[1757932902096,132.5,236.43,236.4,4.94996476]
[1757932902484,132.5,236.43,236.39,30.23028866]
[1757932902688,1.65047986,236.4,236.36,26.0]
[1757932902985,1.65047986,236.37,236.36,26.0]
[1757932904082,1.65047986,236.37,236.34,26.0]
[1757932904284,1.65047986,236.36,236.34,26.0]
[1757932904469,0.68,236.39,236.34,26.0]
[1757932904470,1.65047986,236.37,236.34,26.0]
[1757932904671,1.65047986,236.37,236.33,4.23119241]
[1757932904879,1.65047986,236.36,236.33,30.23119241]
[1757932905106,1.65047986,236.36,236.33,30.95119241]
[1757932905597,1.65047986,236.36,236.33,30.23119241]
[1757932905968,1.65047986,236.38,236.34,0.72]
[1757932906167,1.65047986,236.38,236.35,0.72]
[1757932906869,1.65047986,236.39,236.35,0.72]
[1757932907079,132.5,236.43,236.36,4.23083432]
[1757932907283,132.5,236.43,236.37,0.72]
[1757932907985,1.65047986,236.48,236.38,26.14216157]
[1757932908169,134.83047986,236.49,236.4,0.14216157]
[1757932908584,134.83047986,236.49,236.41,0.72]
[1757932908971,134.83047986,236.49,236.42,4.22976059]
[1757932909290,134.83047986,236.49,236.42,4.94976059]
[1757932909595,134.83047986,236.49,236.42,15.52416207]
[1757932909776,132.5,236.49,236.43,0.72]
[1757932911477,136.51143962,236.49,236.44,4.2294028]
[1757932911685,4.69143962,236.48,236.44,4.2294028]
[1757932911992,4.01143962,236.45,236.42,26.0]
[1757932912293,136.75865773,236.49,236.41,30.22993951]
[1757932912494,0.68,236.47,236.41,30.22993951]
[1757932912689,4.01143962,236.45,236.41,30.22993951]
[1757932912892,4.69143962,236.45,236.41,30.22993951]
[1757932913190,4.01143962,236.44,236.41,30.22993951]
[1757932914098,4.69143962,236.45,236.41,30.22993951]
[1757932914299,4.01143962,236.45,236.41,30.94993951]
[1757932914497,4.01143962,236.45,236.41,30.22993951]
[1757932914694,4.69143962,236.45,236.41,30.22993951]
[1757932915085,4.01143962,236.46,236.41,30.94993951]
[1757932915290,4.69143962,236.46,236.41,30.94993951]
[1757932915586,4.01143962,236.45,236.41,30.94993951]
[1757932917291,0.68,236.46,236.41,30.94993951]
[1757932917604,4.01143962,236.45,236.41,30.94993951]
[1757932920602,4.04143962,236.49,236.42,0.86216157]
[1757932920985,4.04143962,236.49,236.43,4.22958169]
[1757932921305,4.01143962,236.46,236.43,4.22958169]
[1757932921487,4.01143962,236.46,236.42,4.94974063]
[1757932921683,4.01143962,236.47,236.42,4.94974063]
[1757932921881,4.01143962,236.48,236.43,0.66]
[1757932922290,0.03,236.49,236.44,0.66]
[1757932922492,0.03,236.49,236.45,0.66]
[1757932922885,8.26996373,236.49,236.42,48.54414211]
[1757932923085,4.01143962,236.48,236.42,48.54414211]
[1757932924202,4.71143962,236.49,236.42,47.88414211]
[1757932924396,4.71143962,236.49,236.43,0.66]
[1757932925097,4.71143962,236.49,236.44,4.2294028]
[1757932925496,4.71143962,236.49,236.44,4.8894028]
[1757932927010,4.04143962,236.49,236.44,0.66]
[1757932927507,4.71143962,236.49,236.44,0.66]
[1757932927909,4.01143962,236.48,236.44,0.66]
[1757932928309,4.68143962,236.48,236.43,4.22958169]
[1757932928495,4.68143962,236.48,236.43,4.88958169]
[1757932928890,4.01143962,236.45,236.42,33.06]
[1757932929099,4.22872879,236.48,236.37,0.80216157]
[1757932929100,4.01143962,236.43,236.4,33.06]
[1757932929309,0.67,236.44,236.4,33.06]
[1757932929510,4.01143962,236.43,236.4,33.06]
[1757932929818,4.01143962,236.44,236.4,33.72]
[1757932930625,4.01143962,236.44,236.4,37.95004703]
[1757932931216,4.01143962,236.44,236.4,37.29004703]
[1757932931517,4.01143962,236.44,236.41,0.66]
[1757932931914,132.5,236.47,236.4,37.29004703]
[1757932932218,1.65124552,236.46,236.42,0.66]
[1757932932417,132.5,236.47,236.42,0.66]
[1757932932725,0.03,236.49,236.44,4.2294028]
[1757932932904,0.03,236.49,236.45,0.66]
[1757932933300,0.03,236.49,236.47,26.0]
[1757932933908,0.03,236.49,236.48,0.80216157]
[1757932934112,0.03,236.49,236.48,33.86216157]
[1757932934697,0.03,236.49,236.48,38.09084898]
[1757932942420,0.03,236.49,236.48,4.37084898]
[1757932942620,0.03,236.49,236.48,37.41084898]
[1757932943620,0.03,236.49,236.48,38.07084898]
[1757932946101,0.03,236.49,236.48,5.03084898]
[1757932946305,0.03,236.49,236.48,37.26868741]
[1757932946701,0.03,236.49,236.48,37.41084898]
[1757932946920,0.03,236.49,236.48,4.22868741]
[1757932947107,0.03,236.49,236.48,37.26868741]
[1757932947307,0.03,236.49,236.48,37.41084898]
[1757932947628,3.27760172,236.49,236.42,0.66]
[1757932947823,2.57760172,236.46,236.42,4.22976059]
[1757932948025,0.7,236.49,236.42,4.22976059]
[1757932948026,0.67,236.45,236.43,33.04]
[1757932948225,2.57760172,236.47,236.43,33.04]
[1757932948427,0.67,236.46,236.43,33.04]
[1757932948609,0.67,236.45,236.44,59.04]
[1757932948809,0.67,236.45,236.44,26.0]
[1757932949109,0.67,236.45,236.42,4.22976059]
[1757932949314,2.57760172,236.46,236.42,4.22976059]
[1757932949315,0.67,236.44,236.42,37.26976059]
[1757932949632,0.67,236.46,236.42,37.26976059]
[1757932949826,2.57760172,236.47,236.42,37.26976059]
[1757932950208,0.67,236.46,236.42,37.26976059]
[1757932950414,0.7,236.49,236.43,0.66]
[1757932950617,0.03,236.49,236.44,33.04]
[1757932950810,0.03,236.49,236.47,26.0]
[1757932951005,0.03,236.49,236.47,59.04]
[1757932951239,0.03,236.49,236.47,59.7]
[1757932951416,0.03,236.49,236.48,0.66]
[1757932951732,0.03,236.49,236.48,4.88868741]
[1757932952228,0.03,236.49,236.48,5.03084898]
[1757932955633,0.03,236.52,236.48,5.03084898]
[1757932955634,0.03,236.52,236.51,26.0]
[1757932955945,0.03,236.52,236.51,59.04]
[1757932956245,0.03,236.52,236.51,59.85216157]
[1757932956738,0.03,236.52,236.51,64.08031259]
[1757932957128,0.03,236.52,236.51,77.6759066]
[1757932958926,0.03,236.52,236.51,64.08031259]
[1757932959828,0.03,236.52,236.51,63.26815102]
[1757932960340,0.03,236.52,236.51,64.08031259]
[1757932961029,0.03,236.52,236.51,63.41031259]
[1757932963546,0.03,236.52,236.51,30.37031259]
[1757932964052,0.03,236.52,236.51,63.41031259]
[1757932966027,0.03,236.52,236.51,64.08031259]
[1757932970157,0.03,236.52,236.51,31.04031259]
[1757932970333,0.03,236.52,236.51,64.08031259]
[1757932970853,0.03,236.52,236.51,31.04031259]
[1757932971045,0.03,236.52,236.51,64.08031259]
[1757932972244,0.03,236.52,236.51,77.6759066]
[1757932973037,0.03,236.52,236.51,44.6359066]
[1757932973250,0.03,236.55,236.54,39.73775558]
[1757932973451,0.03,236.55,236.54,72.77775558]
[1757932973652,0.03,236.55,236.54,73.43775558]
[1757932974033,0.7,236.64,236.54,73.43775558]
[1757932974243,0.7,236.64,236.58,26.0]
[1757932974556,0.7,236.64,236.62,0.14216157]
[1757932974860,0.7,236.64,236.61,4.22636405]
[1757932974861,0.7,236.64,236.63,33.02]
[1757932976560,0.7,236.64,236.63,37.24600684]
[1757932979540,0.7,236.66,236.63,37.24600684]
[1757932979744,0.7,236.68,236.64,0.14216157]
[1757932979959,2.57760172,236.71,236.65,33.02]
[1757932980177,0.7,236.67,236.65,33.02]
[1757932980368,0.7,236.66,236.65,33.02]
[1757932980858,0.7,236.66,236.65,4.22564969]
[1757932981066,0.7,236.66,236.65,33.02]
[1757932981268,6.80253728,236.69,236.65,33.02]
[1757932981472,0.7,236.68,236.65,33.02]
[1757932981641,0.66,236.67,236.63,0.14216157]
[1757932981843,0.66,236.66,236.63,0.14216157]
[1757932982042,0.66,236.7,236.63,0.14216157]
[1757932982242,0.66,236.7,236.64,33.02]
[1757932982470,0.66,236.69,236.63,0.14216157]
[1757932982675,0.66,236.69,236.65,33.02]
[1757932982871,0.66,236.68,236.65,33.02]
[1757932983045,0.66,236.67,236.65,37.24560563]